bitfinex/quotes_SOLUSD_20240621
["timestamp","ask_amount","ask_price","bid_price","bid_amount"]
[1718992156390,0.8416462,130.22,130.17,6.1455]
[1718992157181,0.8416462,130.22,130.18,6.1452]
[1718992158385,0.8416462,130.22,130.17,6.1456]
[1718992158703,12.3869,130.2,130.13,6.1474]
[1718992158865,6.2422,130.2,130.11,15.3704]
[1718992159394,12.3867,130.2,130.14,6.1468]
[1718992159967,6.1449,130.19,130.13,6.1475]
[1718992160358,6.2422,130.2,130.11,15.3704]
[1718992160359,12.3866,130.2,130.14,6.1469]
[1718992160578,6.2422,130.2,130.11,15.3704]
[1718992160772,6.2422,130.2,130.08,15.6451]
[1718992160974,6.1468,130.15,130.09,6.1493]
[1718992161180,6.5436,130.14,130.08,35.9798]
[1718992161487,6.5436,130.14,130.1,6.149]
[1718992162790,6.5436,130.14,130.06,15.3765]
[1718992162996,12.6909,130.14,130.08,6.1498]
[1718992163156,6.5436,130.14,130.06,15.3765]
[1718992163491,6.5436,130.14,130.08,15.3749]
[1718992163660,6.5436,130.14,130.12,6.148]
[1718992164161,6.5436,130.14,130.11,6.1484]
[1718992164360,6.5436,130.14,130.06,15.3774]
[1718992164567,6.1478,130.13,130.07,6.1503]
[1718992164894,12.6912,130.14,130.07,6.1503]
[1718992165257,6.1478,130.13,130.07,6.1503]
[1718992165763,6.5436,130.14,130.04,15.6995]
[1718992166093,6.1492,130.1,130.04,6.1517]
[1718992166392,12.2984,130.11,130.05,6.1514]
[1718992166601,6.1492,130.1,130.04,6.1519]
[1718992166889,12.2982,130.11,130.05,6.1514]
[1718992167069,6.1491,130.1,130.04,6.1517]
[1718992167256,6.1495,130.11,130.02,23.12]
[1718992167662,6.1495,130.11,130.03,15.3799]
[1718992167888,6.1495,130.11,130.05,6.1512]
[1718992168098,6.1493,130.1,130.04,6.1518]
[1718992168255,12.2983,130.11,130.04,6.1515]
[1718992168462,12.2983,130.11,130.01,15.3834]
[1718992168765,12.2983,130.11,130.05,6.1513]
[1718992169995,6.1495,130.11,130.05,6.1513]
[1718992170165,6.1495,130.11,130.05,6.1512]
[1718992170367,6.1495,130.11,130.02,83.5013]
[1718992170578,12.2982,130.11,130.02,60.3813]
[1718992170782,6.1495,130.11,130.02,60.3813]
[1718992171191,12.2982,130.11,130.05,6.1513]
[1718992171384,6.1495,130.11,130.05,6.1513]
[1718992171580,6.1491,130.1,130.04,6.1517]
[1718992172169,6.1495,130.11,130.04,6.1517]
[1718992172170,12.2983,130.11,130.04,6.1517]
[1718992172379,12.2983,130.11,130.05,6.1514]
[1718992172689,6.151,130.06,129.99,51.4209]
[1718992172909,6.1507,130.07,130.01,6.1529]
[1718992173094,6.151,130.06,130.0,6.1537]
[1718992173481,6.3145,130.09,130.0,6.1537]
[1718992173693,6.1517,130.05,129.99,6.1541]
[1718992174095,6.1517,130.05,129.98,6.1545]
[1718992174300,6.1517,130.05,129.99,6.1543]
[1718992175816,6.3145,130.04,129.99,6.1543]
[1718992176300,6.3145,130.04,129.94,46.24]
[1718992176495,6.3145,130.04,130.0,6.1535]
[1718992177690,6.3269,130.07,129.97,23.12]
[1718992178003,6.3269,130.07,130.03,6.1523]
[1718992178483,6.3269,130.07,130.02,6.1526]
[1718992179101,12.4774,130.07,130.01,6.1531]
[1718992179500,6.1512,130.06,129.98,60.3867]
[1718992179672,12.4776,130.07,130.01,6.1533]
[1718992181505,6.151,130.06,130.0,6.1537]
[1718992182421,16.4775,130.04,129.99,6.1542]
[1718992182607,16.4775,130.04,129.98,6.1545]
[1718992182983,16.4775,130.04,129.99,6.1542]
[1718992183185,16.4775,130.04,129.98,6.1545]
[1718992183390,16.4775,130.04,129.99,6.1542]
[1718992184919,16.4775,130.04,129.99,6.1541]
[1718992185512,16.4775,130.04,129.98,6.1545]
[1718992185513,22.6294,130.04,129.98,6.1545]
[1718992186494,16.4775,130.04,129.99,6.1543]
[1718992186991,16.4775,130.04,129.96,15.3892]
[1718992187196,16.4775,130.04,129.97,60.3871]
[1718992187787,16.4775,130.04,130.01,6.1531]
[1718992189411,22.6727,130.07,130.02,6.1528]
[1718992189713,22.6727,130.07,130.03,6.1523]
[1718992189943,22.6727,130.07,130.04,6.1518]
[1718992190225,22.6727,130.07,130.03,6.1522]
[1718992190719,22.6727,130.07,130.04,6.1518]
[1718992190909,22.6727,130.07,130.05,6.1513]
[1718992191383,22.6727,130.07,130.01,15.3824]
[1718992191583,22.6727,130.07,130.02,45.0]
[1718992192700,22.6727,130.07,130.04,6.1517]
[1718992192903,22.2526,130.1,130.02,45.0]
[1718992193093,22.2526,130.1,130.05,6.1512]
[1718992193301,260.4,130.12,130.06,45.0]
[1718992193706,260.4,130.12,130.06,60.3764]
[1718992193913,260.4,130.12,130.05,29.88]
[1718992194094,260.4,130.12,130.06,6.1507]
[1718992194687,260.4,130.12,130.07,6.1504]
[1718992195293,260.4,130.12,130.08,6.1499]
[1718992196328,6.1474,130.14,130.05,29.88]
[1718992196494,22.8115,130.16,130.06,45.0]
[1718992196697,6.147,130.15,130.09,6.1494]
[1718992196901,28.9578,130.16,130.1,6.149]
[1718992198088,28.9578,130.16,130.07,15.3751]
[1718992198089,22.8115,130.16,130.07,15.3751]
[1718992198293,6.1468,130.15,130.09,6.1494]
[1718992198712,6.1472,130.14,130.08,51.1498]
[1718992199112,6.1468,130.15,130.09,6.1494]
[1718992200117,28.9579,130.16,130.1,6.149]
[1718992200319,6.1467,130.15,130.09,6.1492]
[1718992200619,28.958,130.16,130.09,6.1492]
[1718992200794,28.958,130.16,130.1,6.1489]
[1718992201530,6.1473,130.14,130.08,51.1497]
[1718992201716,22.8115,130.16,130.09,6.1491]
[1718992201902,28.958,130.16,130.1,6.149]
[1718992202502,22.8115,130.16,130.08,45.0]
[1718992202691,22.8115,130.16,130.08,74.88]
[1718992202896,22.8115,130.16,130.13,6.1473]
[1718992203089,22.8115,130.16,130.12,6.1477]
[1718992203314,22.8115,130.16,130.13,6.1476]
[1718992204119,16.26,130.16,130.11,15.3706]
[1718992204311,22.8627,130.19,130.15,6.1463]
[1718992204895,22.8627,130.19,130.12,45.0]
[1718992205116,29.0077,130.19,130.13,6.1476]
[1718992206018,6.146,130.17,130.11,6.1484]
[1718992206205,22.8627,130.19,130.08,29.88]
[1718992206402,45.0,130.18,130.07,15.3761]
[1718992206717,6.1461,130.17,130.11,6.1485]
[1718992207627,6.1455,130.18,130.12,6.1481]
[1718992208321,6.1463,130.16,130.1,6.1489]
[1718992208520,35.91532296,130.21,130.06,23.12]
[1718992208521,16.1341,130.17,130.06,15.3772]
[1718992208727,16.1341,130.17,130.05,29.88]
[1718992208728,16.1341,130.14,130.02,16.0971]
[1718992208945,16.1341,130.14,130.04,6.1515]
[1718992208946,6.1489,130.11,130.04,6.1515]
[1718992209100,31.5022,130.14,130.05,6.1513]
[1718992209419,45.0,130.13,130.05,6.1513]
[1718992209606,6.1494,130.1,130.04,6.1518]
[1718992210464,6.2016,130.09,130.04,6.1518]
[1718992210635,6.2016,130.09,130.01,29.88]
[1718992210636,15.889,130.08,130.01,29.88]
[1718992210929,15.889,130.08,129.97,61.579883]
[1718992210930,15.889,130.08,130.0,6.1536]
[1718992211117,15.889,130.08,130.01,6.153]
[1718992211318,22.0394,130.08,130.02,6.1528]
[1718992212035,15.889,130.08,130.02,6.1528]
[1718992212527,6.1505,130.07,130.01,6.1533]
[1718992212731,15.889,130.08,130.03,6.152]
[1718992212923,6.1505,130.07,130.01,6.1533]
[1718992213256,15.889,130.08,129.96,16.4887]
[1718992213458,45.0,130.07,129.97,20.0]
[1718992213599,6.1516,130.05,129.99,6.154]
[1718992213799,6.1511,130.06,130.0,6.1538]
[1718992214027,51.1506,130.07,130.0,6.1538]
[1718992214224,45.0,130.07,130.0,6.1538]
[1718992214412,6.1512,130.06,129.99,6.1541]
[1718992214613,51.1506,130.07,129.97,15.3871]
[1718992215017,15.889,130.08,129.98,23.12]
[1718992215210,15.889,130.08,130.04,6.1516]
[1718992215411,15.889,130.08,129.99,65.17]
[1718992215412,15.889,130.08,130.03,6.1523]
[1718992215622,15.889,130.08,129.99,45.0]
[1718992215922,15.889,130.08,129.94,47.2706]
[1718992216115,6.1511,130.06,130.0,6.1535]
[1718992216720,6.1512,130.06,129.99,6.1541]
[1718992216911,6.1512,130.06,130.0,6.1535]
[1718992217236,15.889,130.08,129.97,15.388]
[1718992217420,51.1506,130.07,130.01,6.1531]
[1718992217926,6.1508,130.07,130.01,6.1532]
[1718992218132,22.0392,130.08,130.02,6.1528]
[1718992218313,6.1505,130.07,130.01,6.1531]
[1718992218510,22.039,130.08,130.02,6.1527]
[1718992218839,15.889,130.08,130.03,6.1523]
[1718992219629,15.889,130.08,129.98,15.3867]
[1718992219827,15.889,130.08,129.95,6.0804]
[1718992219828,6.1515,130.05,129.99,6.154]
[1718992220030,6.2733,130.03,129.98,6.1545]
[1718992220615,6.2733,130.03,129.99,6.1542]
[1718992221136,21.7904,130.03,129.98,6.1545]
[1718992221355,21.7904,130.03,129.99,6.1543]
[1718992221520,21.7904,130.03,130.0,6.1537]
[1718992222021,21.7904,130.03,129.99,6.1541]
[1718992222438,21.7904,130.03,130.0,6.1538]
[1718992223257,21.7904,130.03,129.99,6.1541]
[1718992223419,21.7904,130.03,130.0,6.1538]
[1718992223829,21.7298,130.06,130.01,6.1532]
[1718992224427,27.8808,130.06,130.0,6.1536]
[1718992224632,27.8809,130.06,130.0,6.1537]
[1718992224833,27.8809,130.06,129.99,6.1539]
[1718992224834,6.1515,130.05,129.99,6.1539]
[1718992225028,27.881,130.06,130.0,6.1538]
[1718992225342,6.1514,130.05,129.99,6.1541]
[1718992225547,27.8808,130.06,130.0,6.1536]
[1718992225760,6.1516,130.05,129.99,6.1542]
[1718992228850,27.881,130.06,130.0,6.1538]
[1718992229421,21.7298,130.06,129.96,23.12]
[1718992229625,21.7298,130.06,130.01,6.153]
[1718992229825,21.7298,130.06,129.98,23.12]
[1718992230130,21.7298,130.06,130.03,6.1521]
[1718992230452,15.5403,130.09,130.04,6.1519]
[1718992230752,12.176,130.1,130.03,23.12]
[1718992230753,6.0267,130.1,130.03,23.12]
[1718992230964,15.5403,130.12,130.07,6.1502]
[1718992231143,15.5403,130.12,130.05,45.0]
[1718992231467,15.5403,130.12,130.07,6.1504]
[1718992231751,15.5403,130.12,130.06,6.1507]
[1718992232839,21.6885,130.12,130.05,6.1513]
[1718992233020,15.5403,130.12,129.98,41.2679]
[1718992233222,6.1498,130.09,130.0,20.0]
[1718992233525,6.1498,130.09,130.03,6.1521]
[1718992234124,6.0679,130.1,130.0,20.0]
[1718992234351,6.0679,130.1,130.05,6.1513]
[1718992234849,6.0679,130.1,130.06,6.151]
[1718992235947,6.0679,130.1,130.05,6.1513]
[1718992236748,6.0679,130.1,130.04,6.1517]
[1718992236749,12.2171,130.1,130.04,6.1517]
[1718992238354,6.0679,130.1,130.05,6.1514]
[1718992238647,6.0679,130.1,130.05,6.1512]
[1718992238852,12.217,130.1,130.04,6.1517]
[1718992239442,6.0679,130.1,130.02,15.3821]
[1718992239628,6.0679,130.1,130.03,45.0]
[1718992240034,6.0679,130.1,130.06,6.1507]
[1718992240224,15.5403,130.12,130.07,6.1502]
[1718992240629,21.6885,130.12,130.06,6.1507]
[1718992241462,21.6885,130.12,130.07,6.1505]
[1718992242032,21.6885,130.12,130.04,15.3789]
[1718992242361,21.6885,130.12,130.06,6.1506]
[1718992244539,21.6885,130.12,130.07,6.1504]
[1718992244540,15.5403,130.12,130.07,6.1504]
[1718992245161,21.6887,130.12,130.06,6.151]
[1718992245367,6.1486,130.11,130.05,6.1511]
[1718992245679,21.6885,130.12,130.06,6.1506]
[1718992245960,15.5403,130.12,130.07,6.1504]
[1718992247281,21.6884,130.12,130.06,6.1508]
[1718992248142,15.5403,130.12,130.04,6.1516]
[1718992248348,6.1493,130.1,130.04,6.1516]
[1718992249045,6.1493,130.1,130.05,6.1514]
[1718992249513,6.1496,130.09,130.01,15.3826]
[1718992249769,6.1496,130.09,130.04,6.1519]
[1718992249770,6.3764,130.08,130.04,6.1519]
[1718992250075,6.3764,130.08,130.03,6.1522]
[1718992251368,6.3764,130.08,130.04,6.1518]
[1718992251564,6.3764,130.08,130.01,15.3826]
[1718992251565,6.3764,130.08,130.03,6.1524]
[1718992251871,12.5264,130.08,130.02,6.1526]
[1718992252074,15.0287,130.07,130.02,6.1526]
[1718992253270,6.1515,130.05,129.99,6.154]
[1718992253482,6.1512,130.06,130.0,6.1538]
[1718992253879,15.0287,130.07,130.02,6.1528]
[1718992255210,15.0287,130.07,129.99,15.3848]
[1718992255508,15.0287,130.07,130.0,45.0]
[1718992255663,15.0287,130.07,130.03,6.1523]
[1718992256500,15.0287,130.07,130.02,6.1528]
[1718992256799,21.1793,130.07,130.01,6.1532]
[1718992258599,15.0287,130.07,130.02,6.1527]
[1718992259695,15.0287,130.07,130.03,6.1522]
[1718992259894,15.0287,130.07,130.0,15.3836]
[1718992260080,15.0287,130.07,130.03,6.1521]
[1718992260389,15.0287,130.07,130.04,6.1518]
[1718992260594,15.0287,130.07,130.05,6.1513]
[1718992261309,15.0287,130.07,130.01,45.2325]
[1718992261481,15.0287,130.07,130.03,6.1521]
[1718992261872,15.0287,130.07,130.04,6.1518]
[1718992262293,15.0287,130.07,130.05,6.1514]
[1718992262498,15.0287,130.07,130.04,6.1519]
[1718992264172,15.0287,130.07,130.05,6.1514]
[1718992264363,15.0287,130.07,130.06,6.151]
[1718992264568,21.5393,130.12,130.07,6.1503]
[1718992264793,21.5393,130.12,130.08,6.15]
[1718992265172,21.5393,130.12,130.08,6.1498]
[1718992265586,21.5393,130.12,130.07,6.1503]
[1718992266308,21.5393,130.12,130.08,6.15]
[1718992266514,21.5393,130.12,130.07,6.1503]
[1718992266745,21.5393,130.12,130.08,6.1499]
[1718992267083,21.5393,130.12,130.02,60.0883]
[1718992267385,21.5393,130.12,130.07,6.1502]
[1718992268003,6.1486,130.11,130.04,15.3789]
[1718992268206,6.1486,130.11,130.05,6.1511]
[1718992268388,21.5393,130.12,130.03,35.3801]
[1718992268590,27.6877,130.12,130.06,6.1508]
[1718992269021,6.1488,130.11,130.05,6.1514]
[1718992269322,51.1494,130.1,130.04,6.1516]
[1718992269618,45.0,130.1,130.01,15.3834]
[1718992269793,51.1489,130.11,130.05,6.1514]
[1718992270921,20.0,130.1,130.05,6.1514]
[1718992271418,26.1492,130.1,130.04,6.1517]
[1718992271586,26.1492,130.1,130.05,6.1514]
[1718992271791,20.0,130.1,130.05,6.1514]
[1718992272300,26.1491,130.1,130.05,6.1514]
[1718992272493,26.1491,130.1,130.04,6.1517]
[1718992272708,6.1503,130.08,130.02,6.1526]
[1718992272972,6.5534,130.06,129.96,21.1793]
[1718992273214,6.5534,130.06,129.93,36.1726]
[1718992273215,6.1517,130.05,129.93,36.1726]
[1718992273424,6.5534,130.06,129.93,36.1726]
[1718992273425,26.1522,130.04,129.93,36.1726]
[1718992273589,26.1522,130.04,129.95,15.3896]
[1718992273590,20.0,130.04,129.95,15.3896]
[1718992273789,26.1522,130.04,129.95,15.3896]
[1718992273989,20.0,130.04,129.99,6.1542]
[1718992274396,20.0,130.04,130.0,6.1536]
[1718992274606,26.1515,130.05,129.99,6.154]
[1718992274807,20.0,130.05,130.0,6.1537]
[1718992274993,12.7045,130.06,130.0,6.1537]
[1718992275732,6.5534,130.06,129.95,15.3902]
[1718992275947,6.1521,130.04,129.98,6.1545]
[1718992276621,6.5534,130.06,129.96,15.3881]
[1718992276806,20.0,130.05,129.96,15.3881]
[1718992276999,6.1522,130.04,129.98,6.1543]
[1718992277198,20.0,130.05,129.97,6.155]
[1718992277199,6.1524,130.03,129.97,6.155]
[1718992277406,15.2865,130.02,129.97,6.155]
[1718992277826,6.1661,130.01,129.96,6.1555]
[1718992278003,6.1661,130.01,129.97,6.1552]
[1718992278947,15.2865,130.02,129.95,15.3894]
[1718992279236,15.2865,130.02,129.96,45.0]
[1718992279733,15.2865,130.02,129.96,60.3884]
[1718992280081,6.6345,130.04,129.96,45.0]
[1718992280201,6.6345,130.04,129.97,15.3872]
[1718992280391,6.6345,130.04,129.98,45.0]
[1718992280599,6.6345,130.04,129.99,6.1542]
[1718992282533,6.6345,130.04,130.0,6.1538]
[1718992282717,15.2425,130.05,129.97,52.98]
[1718992282901,15.2425,130.05,130.02,6.1528]
[1718992283843,15.2425,130.05,129.98,103.8559]
[1718992284048,16.6048,130.07,130.04,6.1518]
[1718992284256,23.0449,130.1,130.06,6.1508]
[1718992284735,23.0449,130.1,130.05,6.1512]
[1718992285251,23.0449,130.1,130.06,6.1508]
[1718992285454,29.1921,130.14,130.08,6.1496]
[1718992285624,23.0449,130.14,130.09,6.1495]
[1718992286340,29.1922,130.14,130.08,6.15]
[1718992286849,23.0449,130.14,130.09,6.1495]
[1718992287431,23.0449,130.14,130.08,6.1498]
[1718992288146,29.1921,130.14,130.06,15.3774]
[1718992288322,29.1921,130.14,130.07,45.0]
[1718992288644,29.1921,130.14,130.06,6.1507]
[1718992288645,6.1482,130.12,130.06,6.1507]
[1718992289657,6.1486,130.11,130.05,6.1513]
[1718992290130,23.0449,130.14,130.05,15.3776]
[1718992290499,20.0,130.13,130.06,45.0]
[1718992290629,20.0,130.13,130.06,68.13]
[1718992290822,23.0449,130.14,130.07,15.3762]
[1718992291037,23.0449,130.14,130.1,6.1489]
[1718992291452,23.0449,130.14,130.11,6.1486]
[1718992291841,23.0449,130.14,130.12,6.1481]
[1718992292059,22.0726,130.18,130.13,6.1476]
[1718992292454,28.218,130.18,130.12,6.1479]
[1718992292657,22.0726,130.18,130.13,6.1476]
[1718992292876,22.0726,130.18,130.15,6.1467]
[1718992293059,22.0726,130.18,130.14,6.1471]
[1718992293370,22.0726,130.18,130.11,15.3706]
[1718992293371,22.0726,130.18,130.13,6.1475]
[1718992293567,15.5232,130.18,130.12,15.3694]
[1718992293774,6.4242,130.2,130.13,45.0]
[1718992294147,6.4242,130.2,130.14,6.1472]
[1718992294347,6.4242,130.2,130.15,6.1466]
[1718992295347,12.5686,130.2,130.14,6.1471]
[1718992295549,6.1448,130.19,130.13,51.1475]
[1718992295867,12.5687,130.2,130.14,6.1471]
[1718992296065,6.4242,130.2,130.11,15.3705]
[1718992296380,12.5688,130.2,130.14,6.1469]
[1718992298679,6.1456,130.18,130.12,6.148]
[1718992300176,6.1459,130.17,130.11,6.1485]
[1718992300342,6.1459,130.17,130.12,6.1481]
[1718992300538,6.1458,130.17,130.11,6.1484]
[1718992300778,6.1458,130.17,130.12,6.1481]
[1718992300943,6.1458,130.17,130.11,6.1484]
[1718992301140,6.4242,130.2,130.08,15.3741]
[1718992301470,22.103,130.16,130.1,6.1489]
[1718992301678,15.9567,130.16,130.11,6.1485]
[1718992302058,15.9567,130.16,130.13,6.1474]
[1718992302248,15.9567,130.16,130.14,6.1467]
[1718992303113,15.9567,130.16,130.1,23.13]
[1718992303114,15.9567,130.16,130.09,15.3737]
[1718992303247,15.9567,130.16,130.13,6.1476]
[1718992306666,15.9567,130.16,130.1,60.3718]
[1718992306667,15.9567,130.16,130.12,6.1481]
[1718992306848,15.9567,130.16,130.11,6.1484]
[1718992308071,15.9567,130.16,130.12,6.1481]
[1718992308663,15.9567,130.16,130.13,6.1476]
[1718992309259,15.9567,130.16,130.12,6.1479]
[1718992309472,15.9567,130.16,130.13,6.1476]
[1718992313060,15.9567,130.16,130.1,51.1487]
[1718992313261,15.9567,130.16,130.1,51.149]
[1718992313465,22.1032,130.16,130.11,6.1485]
[1718992313674,22.1032,130.16,130.1,6.1489]
[1718992313985,22.1032,130.16,130.11,6.1485]
[1718992314161,15.9567,130.16,130.11,6.1485]
[1718992315611,15.9567,130.16,130.13,6.1476]
[1718992315928,6.4242,130.2,130.07,76.723]
[1718992315929,16.2354,130.19,130.11,23.13]
[1718992316194,16.2354,130.19,130.15,15.3667]
[1718992316477,16.2354,130.19,130.15,6.1465]
[1718992316662,16.2354,130.19,130.14,6.1471]
[1718992318065,16.2354,130.19,130.15,6.1465]
[1718992318766,16.0864462,130.22,130.16,45.0]
[1718992318961,16.0864462,130.22,130.18,6.145]
[1718992319786,16.0864462,130.22,130.11,6.5003]
[1718992319991,16.0864462,130.22,130.09,76.7189]
[1718992320174,26.1443,130.21,130.15,6.1463]
[1718992320378,20.0,130.21,130.16,6.1462]
[1718992320567,16.0864462,130.22,130.17,6.1457]
[1718992320774,22.2298462,130.22,130.17,6.1457]
[1718992321393,22.2298462,130.22,130.16,6.146]
[1718992321768,6.1445,130.2,130.14,6.1471]
[1718992321967,6.1441,130.21,130.15,6.1466]
[1718992322179,6.1439,130.21,130.16,6.1461]
[1718992322385,16.0864462,130.22,130.12,29.85]
[1718992322693,6.3077,130.18,130.13,6.1474]
[1718992323071,6.3077,130.18,130.14,6.1472]
[1718992323701,6.3077,130.18,130.13,6.1474]
[1718992323936,12.4531,130.18,130.12,6.148]
[1718992324211,16.339,130.17,130.1,45.0]
[1718992324377,16.339,130.17,130.13,6.1476]
[1718992324695,16.339,130.17,130.15,6.1466]
[1718992324871,16.339,130.17,130.14,6.147]
[1718992325068,16.339,130.17,130.15,6.1467]
[1718992325289,16.339,130.17,130.11,15.371]
[1718992325503,16.339,130.17,130.14,6.1471]
[1718992326792,16.339,130.17,130.15,6.1467]
[1718992328565,6.1444,130.2,130.1,68.13]
[1718992328566,15.8668,130.2,130.12,52.98]
[1718992328766,15.8668,130.2,130.17,6.1456]
[1718992328970,15.8668,130.2,130.16,6.146]
[1718992329676,15.8668,130.2,130.13,60.3689]
[1718992329876,15.8668,130.2,130.14,0.17]
[1718992330083,15.8668,130.2,130.16,6.146]
[1718992331203,15.8668,130.2,130.14,0.34]
[1718992331496,0.8416462,130.22,130.18,6.1452]
[1718992333324,0.8416462,130.22,130.15,69.5217]
[1718992333487,0.8416462,130.22,130.21,6.1439]
[1718992333881,0.8416462,130.22,130.21,51.1439]
[1718992334607,0.8416462,130.22,130.21,51.4839]
[1718992335501,0.8416462,130.22,130.21,51.1439]
[1718992335811,0.8416462,130.22,130.21,6.1439]
[1718992336407,0.8416462,130.22,130.21,45.0]
[1718992336702,0.8416462,130.22,130.21,51.1439]
[1718992337280,0.8416462,130.22,130.21,87.2665]
[1718992337512,7.98398305,130.32,130.23,100.0]
[1718992337774,6.1382,130.33,130.27,6.141]
[1718992337996,16.3806,130.34,130.24,94.85]
[1718992337997,16.3806,130.34,130.24,45.0]
[1718992338219,22.5185,130.34,130.24,60.3551]
[1718992338509,16.3806,130.34,130.24,60.3551]
[1718992338707,16.3806,130.34,130.24,45.0]
[1718992339007,16.3806,130.34,130.27,6.1407]
[1718992339008,6.1383,130.33,130.27,6.1407]
[1718992339180,22.5184,130.34,130.28,6.1405]
[1718992339389,16.3806,130.34,130.25,38.485]
[1718992339688,16.3806,130.34,130.25,15.355]
[1718992339886,20.0,130.33,130.27,15.3526]
[1718992340129,20.0,130.33,130.29,6.1399]
[1718992341300,16.3806,130.34,130.28,15.3503]
[1718992341636,8.82081255,130.35,130.32,6.1386]
[1718992341974,8.82081255,130.35,130.31,6.139]
[1718992342174,8.82081255,130.35,130.3,15.3486]
[1718992342397,8.82081255,130.35,130.33,6.1379]
[1718992342679,0.8416462,130.35,130.34,6.1377]
[1718992342997,0.8416462,130.35,130.3,29.85]
[1718992343173,0.8416462,130.35,130.33,6.138]
[1718992343375,0.8416462,130.35,130.29,0.17]
[1718992343577,0.8416462,130.35,130.29,20.17]
[1718992344131,0.8416462,130.35,130.32,6.1386]
[1718992344298,7.1381462,130.35,130.25,15.354]
[1718992344473,7.1381462,130.35,130.31,6.1391]
[1718992344669,7.1381462,130.35,130.3,6.1394]
[1718992345114,7.1381462,130.35,130.26,0.17]
[1718992345309,20.0,130.34,130.29,6.1398]
[1718992345883,20.0,130.34,130.26,0.17]
[1718992346206,6.1384,130.33,130.27,6.1407]
[1718992346515,36.4041,130.32,130.21,29.4716]
[1718992346801,36.4041,130.32,130.24,6.1422]
[1718992346802,6.1398,130.3,130.24,6.1422]
[1718992346974,16.4041,130.32,130.25,15.355]
[1718992347181,7.1381462,130.35,130.25,23.13]
[1718992347400,20.0,130.34,130.21,6.3416]
[1718992347658,6.1385,130.33,130.27,6.1407]
[1718992347785,6.1387,130.32,130.26,6.1413]
[1718992347984,26.139,130.32,130.23,38.4872]
[1718992348185,20.0,130.34,130.29,6.14]
[1718992348411,20.0,130.34,130.25,15.354]
[1718992348587,6.1383,130.33,130.27,6.1408]
[1718992348906,20.0,130.34,130.25,15.354]
[1718992349100,26.1379,130.34,130.28,6.1404]
[1718992349478,6.1383,130.33,130.27,6.141]
[1718992349703,6.139,130.32,130.26,6.1414]
[1718992349914,16.5366,130.3,130.22,15.3574]
[1718992350089,16.5366,130.3,130.26,6.1415]
[1718992350289,16.5366,130.3,130.24,15.3562]
[1718992350627,16.5366,130.3,130.26,6.1415]
[1718992350915,16.5366,130.3,130.27,6.141]
[1718992351101,16.5366,130.34,130.29,6.1398]
[1718992351494,16.5366,130.34,130.26,15.3529]
[1718992352016,16.5366,130.34,130.29,6.14]
[1718992352395,16.5366,130.34,130.25,0.34]
[1718992352596,16.5366,130.34,130.27,6.1408]
[1718992352597,6.1383,130.33,130.27,6.1408]
[1718992352796,16.5366,130.34,130.29,6.14]
[1718992352991,16.5366,130.34,130.3,6.1396]
[1718992353222,8.0124738,130.33,130.3,6.1396]
[1718992353510,8.0124738,130.33,130.29,6.1399]
[1718992353706,8.0124738,130.33,130.28,6.1403]
[1718992353910,8.0124738,130.33,130.25,0.34]